bitfinex-derivatives/quotes_ETHF0:USTF0_20250331
["timestamp","ask_amount","ask_price","bid_price","bid_amount"]
[1743416132422,3.2078,1784.6,1784.5,2.61656]
[1743416134522,5.71111,1784.9,1784.8,1.12077]
[1743416134719,4.5904,1784.9,1784.6,2.6211]
[1743416134921,3.2078,1784.9,1784.7,1.3865]
[1743416135122,3.2078,1784.9,1784.7,2.703]
[1743416135422,27.35876412,1785.1,1784.7,2.703]
[1743416135724,4.32851,1784.9,1784.8,2.50727]
[1743416136121,4.32851,1784.9,1784.8,1.3865]
[1743416136322,4.32851,1784.9,1784.8,2.50727]
[1743416136818,4.32851,1784.9,1784.8,1.3865]
[1743416137527,3.2078,1784.9,1784.6,5.15757]
[1743416137822,4.32851,1784.9,1784.8,2.55757]
[1743416139230,3.2078,1784.9,1784.8,2.55757]
[1743416139623,4.32851,1784.9,1784.8,2.55757]
[1743416140527,2.80193,1784.8,1784.4,0.00841986]
[1743416140724,3.2078,1784.6,1784.5,1.4584]
[1743416141429,4.6735,1784.6,1784.5,1.4584]
[1743416142420,4.6735,1784.6,1784.4,0.00841986]
[1743416142629,2.58666,1784.5,1784.4,1.12943986]
[1743416142822,2.58666,1784.5,1784.4,0.00841986]
[1743416143418,3.18336,1784.5,1784.4,0.00841986]
[1743416144328,3.18336,1784.5,1784.4,2.51023986]
[1743416144532,2.58666,1784.5,1784.4,1.38921986]
[1743416144830,2.58666,1784.5,1784.4,2.51023986]
[1743416145218,2.58666,1784.5,1784.4,1.38921986]
[1743416145423,2.58666,1784.5,1784.4,0.00841986]
[1743416145728,1.12121,1784.1,1784.0,2.50207]
[1743416145923,4.32901,1784.1,1784.0,2.50207]
[1743416146233,2.80319,1784.0,1783.6,1.12149]
[1743416146433,3.2078,1783.7,1783.6,2.53869]
[1743416146630,4.32926,1783.7,1783.6,2.53869]
[1743416147132,4.32926,1783.7,1783.6,1.4172]
[1743416147320,5.70456,1783.7,1783.6,2.53872]
[1743416147726,4.5831,1783.7,1783.6,1.4172]
[1743416148627,5.70456,1783.7,1783.6,1.4172]
[1743416149035,0.00841986,1783.8,1783.7,1.12146]
[1743416149335,3.2078,1784.8,1784.7,1.12083]
[1743416149530,3.8918,1785.0,1784.9,1.12071]
[1743416149832,3.89179,1785.0,1784.9,1.12071]
[1743416150031,1.12076,1784.9,1784.8,1.12077]
[1743416150227,5.77576,1784.9,1784.8,1.12077]
[1743416150530,5.77574,1784.9,1784.8,1.12077]
[1743416150925,5.77574,1784.9,1784.8,2.49257]
[1743416151330,5.77574,1784.9,1784.8,1.3718]
[1743416151732,1.12077,1784.8,1784.7,0.00841986]
[1743416151928,2.56797,1784.8,1784.7,0.00841986]
[1743416152327,2.56797,1784.8,1784.7,1.50061986]
[1743416152730,2.56797,1784.8,1784.7,0.00841986]
[1743416153033,5.06797,1784.8,1784.7,0.00841986]
[1743416153233,1.12096,1784.5,1784.4,2.6132]
[1743416153935,3.90726,1784.5,1784.4,2.6132]
[1743416154134,3.90726,1784.5,1784.4,1.4922]
[1743416154334,2.7863,1784.5,1784.4,2.61322]
[1743416155032,3.90726,1784.5,1784.4,2.61322]
[1743416155230,2.7863,1784.5,1784.4,2.61322]
[1743416155435,3.90726,1784.5,1784.4,2.61322]
[1743416155633,3.90726,1784.5,1784.4,1.4922]
[1743416156639,1.12102,1784.4,1784.3,0.00841986]
[1743416156842,3.16662,1784.4,1784.3,0.00841986]
[1743416157140,1.12134,1783.9,1783.8,2.34566]
[1743416157327,1.12134,1783.9,1783.8,3.79036]
[1743416158040,3.2078,1784.0,1783.9,1.12134]
[1743416158233,1.12123,1784.1,1784.0,1.12121]
[1743416159127,4.32899,1784.2,1784.1,1.12121]
[1743416159631,5.79039,1784.2,1784.1,1.12121]
[1743416159836,1.12127,1784.1,1784.0,1.12124]
[1743416160032,1.12127,1784.0,1783.9,1.4262]
[1743416160640,1.12127,1784.0,1783.9,2.54754]
[1743416163343,1.12127,1784.0,1783.9,1.4262]
[1743416163534,4.32907,1784.0,1783.9,1.4262]
[1743416163761,1.1214,1783.8,1783.7,1.12987986]
[1743416164039,4.3292,1783.8,1783.7,1.12987986]
[1743416164242,2.7327,1783.9,1783.7,1.12987986]
[1743416164243,3.85408,1783.9,1783.8,1.1214]
[1743416164444,2.7327,1783.9,1783.8,2.5463]
[1743416164644,3.85404,1783.9,1783.8,2.5463]
[1743416164838,3.85404,1783.9,1783.8,1.4249]
[1743416165042,1.1214,1783.8,1783.7,0.00841986]
[1743416165242,2.6431,1783.8,1783.7,1.43331986]
[1743416165544,5.8509,1783.8,1783.7,1.43331986]
[1743416166343,5.8509,1783.8,1783.7,0.00841986]
[1743416167143,6.36406,1783.9,1783.8,1.1214]
[1743416167343,6.36406,1783.9,1783.8,2.5386]
[1743416167640,1.12112,1784.3,1784.0,2.80319]
[1743416167841,2.39848,1784.3,1784.2,1.12111]
[1743416168146,3.998,1784.5,1784.4,1.12102]
[1743416168147,1.12096,1784.5,1784.4,1.12102]
[1743416168636,1.12102,1784.4,1784.3,3.80882]
[1743416168833,1.12102,1784.4,1784.3,2.6878]
[1743416169038,4.32882,1784.4,1784.3,2.6878]
[1743416169743,4.32882,1784.4,1784.3,3.80888]
[1743416169946,1.12102,1784.4,1784.3,3.80888]
[1743416170149,22.54684412,1784.5,1784.4,1.12102]
[1743416170447,22.54684412,1784.5,1784.4,1.4673]
[1743416170639,1.12121,1784.1,1784.0,2.4931]
[1743416170942,1.12121,1784.1,1783.9,1.12128]
[1743416170943,1.12127,1784.0,1783.9,1.12128]
[1743416171750,1.3769,1784.1,1784.0,1.12127]
[1743416172047,1.12116,1784.2,1783.9,4.2705]
[1743416172348,6.6298,1784.4,1784.0,2.80316]
[1743416172646,1.12117,1784.2,1784.1,1.12116]
[1743416172847,1.12113,1784.3,1784.2,1.12112]
[1743416173435,1.12115,1784.2,1784.1,1.4673]
[1743416173845,2.58175,1784.2,1784.1,1.4673]
[1743416174444,2.58175,1784.2,1783.7,0.00841986]
[1743416174445,1.1214,1783.8,1783.7,0.00841986]
[1743416174649,1.1214,1783.8,1783.7,1e-08]
[1743416174650,5.1194,1783.8,1783.7,1e-08]
[1743416174944,1.12184,1783.1,1783.0,1.2159]
[1743416175244,4.32964,1783.1,1783.0,1.2159]
[1743416175641,4.32964,1783.1,1782.7,4.32986]
[1743416175642,6.01244,1783.1,1782.7,4.32986]
[1743416175945,1.12203,1782.9,1782.6,1.2229]
[1743416176143,3.998,1783.0,1782.8,1.122]
[1743416176144,5.4586,1783.0,1782.8,1.122]
[1743416176341,1.122,1782.9,1782.8,1.122]
[1743416176846,4.3298,1782.9,1782.8,1.122]
[1743416177039,4.3298,1782.9,1782.8,1.12203]
[1743416177236,4.00741986,1783.1,1782.7,0.00841986]
[1743416177641,1.12203,1782.8,1782.7,0.00841986]
[1743416178042,1.12203,1782.8,1782.7,1.50701986]
[1743416178238,6.62803,1782.8,1782.7,1.50701986]
[1743416178645,6.62803,1782.8,1782.7,0.00841986]
[1743416178850,7.88243,1782.8,1782.7,1e-08]
[1743416179349,10.38243,1782.8,1782.7,1e-08]
[1743416181050,7.88243,1782.8,1782.7,1e-08]
[1743416182158,10.38243,1782.8,1782.7,1e-08]
[1743416183153,7.88243,1782.8,1782.7,1e-08]
[1743416183643,10.38243,1782.8,1782.7,1e-08]
[1743416183847,16.35243,1782.8,1782.7,1e-08]
[1743416184148,1.12247,1782.1,1782.0,2.62473]
[1743416184347,4.0,1782.2,1782.0,2.62467]
[1743416184543,3.2078,1782.5,1782.0,4.30844]
[1743416184749,1.12232,1782.4,1782.0,4.30844]
[1743416184944,6.01338,1782.5,1782.0,1.5022]
[1743416185149,1.12239,1782.3,1782.2,1.12241]
[1743416185543,7.50425,1782.5,1782.1,1.12242]
[1743416185752,1.12241,1782.2,1782.1,1.12242]
[1743416185951,1.12236,1782.3,1782.2,1.12237]
[1743416186243,1.12247,1782.1,1782.0,1.13090986]
[1743416186443,1.12247,1782.1,1782.0,0.00841986]
[1743416186652,1.12236,1782.3,1782.2,1.12237]
[1743416186955,1.12242,1782.2,1782.1,1.12243]
[1743416187155,2.80571,1782.4,1782.0,0.00841986]
[1743416187450,1.12247,1782.1,1782.0,0.00841986]
[1743416187953,4.33027,1782.1,1782.0,0.00841986]
[1743416189351,3.2078,1782.1,1782.0,1.13094986]
[1743416189649,1.12241,1782.2,1782.1,1.12241]
[1743416189845,1.12247,1782.1,1782.0,1.13090986]
[1743416190359,1.12247,1782.1,1782.0,0.00841986]
[1743416190857,1.12247,1782.1,1782.0,1.13094986]
[1743416191358,1.12247,1782.1,1782.0,0.00841986]
[1743416191558,4.33027,1782.1,1782.0,0.00841986]
[1743416192356,1.12286,1781.5,1781.4,1.12286]
[1743416192658,7.2088,1781.9,1781.4,2.80728]
[1743416192859,1.12276,1781.7,1781.6,1.12274]
[1743416193059,1.12283,1781.6,1781.5,1.12282]
[1743416194555,1.12285,1781.5,1781.4,1.13127986]
[1743416194863,1.12281,1781.6,1781.5,1.12279]
[1743416195555,1.12285,1781.5,1781.4,1.13126986]
[1743416195959,1.12285,1781.5,1781.4,0.00841986]
[1743416196762,4.33065,1781.5,1781.4,0.00841986]
[1743416196964,5.71045,1781.5,1781.4,0.00841986]
[1743416198761,4.33065,1781.5,1781.4,0.00841986]
[1743416198964,4.33065,1781.5,1781.4,1.13132986]
[1743416199160,4.33065,1781.5,1781.4,0.00841986]
[1743416199965,5.74495,1781.5,1781.4,0.00841986]
[1743416200162,4.33065,1781.5,1781.4,0.00841986]
[1743416200367,4.33065,1781.5,1781.4,1.13132986]
[1743416200560,1.12285,1781.5,1781.4,1.13132986]
[1743416200759,4.33065,1781.5,1781.4,1.13132986]
[1743416200955,3.21621986,1781.7,1781.4,1.13132986]
[1743416201160,1.12281,1781.6,1781.5,2.41708]
[1743416201762,8.34197986,1781.7,1781.6,1.12278]
[1743416202062,1.12278,1781.6,1781.5,2.41709]
[1743416202264,1.12278,1781.6,1781.5,1.2943]
[1743416203363,1.12278,1781.6,1781.5,2.41715]
[1743416203566,3.21621986,1781.7,1781.6,1.12278]
[1743416203765,4.33893986,1781.7,1781.6,1.12278]
[1743416204069,4.33895986,1781.7,1781.6,1.12278]
[1743416204267,3.21621986,1781.7,1781.6,1.12278]
[1743416204668,4.33893986,1781.7,1781.6,1.12278]
[1743416204870,4.33893986,1781.7,1781.6,2.51738]
[1743416205069,3.21621986,1781.7,1781.6,2.51738]
[1743416205266,1.13113986,1781.7,1781.6,2.51738]
[1743416205667,1.13113986,1781.7,1781.6,1.3946]
[1743416206069,4.33893986,1781.7,1781.6,1.3946]
[1743416207668,5.59383986,1781.7,1781.6,1.3946]
[1743416208166,0.00841986,1781.7,1781.6,2.51738]
[1743416208477,1.13113986,1781.7,1781.6,2.51738]
[1743416209273,1.13113986,1781.7,1781.6,1.3946]
[1743416209971,1.13113986,1781.7,1781.6,2.51738]
[1743416211377,0.00841986,1781.7,1781.6,2.51738]
[1743416211568,1.12256,1782.0,1781.9,1.12253]
[1743416211768,1.12266,1781.8,1781.7,4.69]
[1743416211969,1.12266,1781.8,1781.7,3.2078]
[1743416212273,1.12262,1781.9,1781.7,3.2078]
[1743416212571,1.12249,1782.1,1782.0,1.12247]
[1743416212977,12.82265,1782.3,1781.7,6.01454]
[1743416212978,1.12253,1782.0,1781.9,2.35006]
[1743416213975,1.12253,1782.0,1781.8,1.12263]
[1743416214181,1.12266,1781.8,1781.7,4.33046]
[1743416214480,1.12262,1781.9,1781.8,1.12261]
[1743416214679,1.12262,1781.9,1781.8,2.40371]
[1743416215277,1.12259,1781.9,1781.8,2.40373]
[1743416215777,1.12255,1782.0,1781.9,1.12254]
[1743416215978,4.01041986,1782.2,1782.0,1.12247]
[1743416216286,1.12247,1782.1,1782.0,1.12247]
[1743416216477,1.13086986,1782.2,1782.1,1.12247]
[1743416216679,1.13082986,1782.2,1782.1,1.12247]
[1743416217173,0.00841986,1782.2,1781.8,1.2811]
[1743416217369,1.12259,1781.9,1781.8,2.40372]
[1743416217770,1.12259,1782.0,1781.9,1.12257]
[1743416218580,1.12252,1782.1,1782.0,1.1225]
[1743416218879,1.12256,1782.0,1781.9,1.12254]
[1743416219271,1.13086986,1782.2,1782.1,1.12247]
[1743416219473,1.1225,1782.1,1782.0,1.12248]
[1743416219681,1.12253,1782.0,1781.9,2.35653]
[1743416219877,4.29960986,1782.2,1781.9,1.234]
[1743416220079,1.12253,1782.1,1782.0,1.1225]
[1743416220277,4.29960986,1782.2,1781.9,2.35654]
[1743416220278,1.12253,1782.0,1781.9,2.35654]
[1743416221075,1.12259,1781.9,1781.8,2.4037]
[1743416221470,1.12259,1781.9,1781.8,1.2811]
[1743416221673,1.4851,1782.0,1781.6,4.4418]
[1743416221880,1.4851,1782.0,1781.8,1.1226]
[1743416221881,1.12262,1781.9,1781.8,1.1226]
[1743416222072,3.83133,1782.0,1781.9,1.12259]
[1743416222574,1.12256,1782.0,1781.9,1.12254]
[1743416222774,1.12264,1781.9,1781.8,1.12262]
[1743416222975,1.1227,1781.8,1781.7,1.12268]
[1743416223280,2.80646,1782.0,1781.6,6.82818]
[1743416223281,1.12272,1781.7,1781.6,6.82818]
[1743416223984,1.1227,1781.8,1781.7,1.12268]
[1743416224386,4.30911,1781.9,1781.6,5.7054]
[1743416224585,1.12272,1781.7,1781.6,6.82814]
[1743416224787,1.12272,1781.7,1781.6,1.2636]
[1743416226087,1.12272,1781.7,1781.6,2.6665]
[1743416228179,1.12272,1781.7,1781.6,3.78928]
[1743416228488,1.1227,1781.8,1781.7,1.12272]
[1743416228688,1.1227,1781.8,1781.7,1.4033]
[1743416228889,2.519,1781.8,1781.7,1.4033]
[1743416230483,1.1227,1781.8,1781.7,2.52602]
[1743416230781,1.1227,1781.8,1781.7,1.4033]
[1743416231481,1.1227,1781.8,1781.7,2.6635]
[1743416231779,1.1227,1781.8,1781.7,3.78622]
[1743416231979,1.12258,1782.0,1781.9,1.12256]
[1743416232581,1.12258,1782.0,1781.9,2.52776]
[1743416233895,1.12252,1782.1,1782.0,1.1225]
[1743416234384,0.00841986,1782.2,1782.1,1.12247]
[1743416234590,0.00841986,1782.2,1782.1,2.35227]
[1743416234789,26.84048005,1782.7,1782.3,2.80575]
[1743416235090,21.42586412,1782.4,1782.3,4.33014]
[1743416235490,21.42586412,1782.4,1782.3,6.83014]
[1743416236388,17.34363372,1782.4,1782.3,6.83014]
[1743416236585,15.36423372,1782.4,1782.3,6.83014]
[1743416236987,8.29463372,1782.4,1782.3,6.83014]
[1743416237298,0.00841986,1782.5,1782.4,1.12228]
[1743416237592,0.00841986,1782.5,1782.4,3.62228]
[1743416237792,0.00841986,1782.5,1782.4,1.12228]
[1743416239186,0.00841986,1782.5,1782.4,3.62228]
[1743416240788,0.00841986,1782.5,1782.4,5.12228]
[1743416241990,0.00841986,1782.5,1782.4,1.12228]
[1743416242196,1.13063986,1782.5,1782.4,1.12228]
[1743416242887,0.00841986,1782.5,1782.4,1.12228]
[1743416243087,2.61113986,1782.5,1782.4,1.12228]
[1743416244999,2.61113986,1782.5,1782.4,2.54748]
[1743416251001,1.12234,1782.3,1782.2,0.00841986]
[1743416251201,1.12234,1782.3,1782.2,1.13082986]
[1743416251702,2.53194,1782.3,1782.2,0.00841986]
[1743416252498,1.4096,1782.3,1782.2,1.13082986]
[1743416252696,1.4096,1782.3,1782.2,2.62762986]
[1743416253897,1.2175,1782.4,1782.3,1.12234]
[1743416254098,0.00841986,1782.5,1782.4,1.12228]
[1743416254299,2.61393,1783.0,1782.9,1.12196]
[1743416254701,1.492,1783.0,1782.9,1.12196]
[1743416254892,2.6139,1783.0,1782.9,1.12196]
[1743416255098,1.492,1783.0,1782.9,1.12196]
[1743416255295,1.5153,1783.1,1783.0,1.1219]
[1743416255499,2.3688,1783.2,1783.1,1.12184]
[1743416255695,1.5153,1783.3,1783.2,1.12178]
[1743416255900,1.12167,1783.4,1783.3,1.12166]
[1743416256103,1.52371986,1783.4,1783.3,1.12166]
[1743416256305,2.64536986,1783.4,1783.3,1.12166]
[1743416256703,1.52371986,1783.4,1783.2,1.43311986]
[1743416257007,2.64539986,1783.4,1783.3,1.12171]
[1743416257401,1.52371986,1783.4,1783.3,1.12171]
[1743416258709,1.52371986,1783.4,1783.3,4.32951]
[1743416259802,2.64536986,1783.4,1783.3,3.2078]
[1743416259997,1.12171,1783.3,1783.2,2.55482986]
[1743416260203,0.00841986,1783.4,1783.3,1.12171]
[1743416260705,0.00841986,1783.4,1783.3,10.82751]
[1743416261012,0.00841986,1783.4,1783.3,12.03421]
[1743416261710,3.9579,1784.0,1783.9,1.12134]
[1743416262803,1.12112,1784.3,1784.2,1.12115]
[1743416263097,3.66242,1784.3,1784.2,1.12115]
[1743416263302,2.5413,1784.3,1784.2,1.12115]
[1743416264215,3.9278,1784.3,1784.2,1.12115]
[1743416264915,5.04888,1784.3,1784.2,1.12115]
[1743416265098,1.12118,1784.2,1784.1,1.12117]
[1743416265306,2.56138,1784.2,1784.1,1.12117]
[1743416266306,1.4402,1784.2,1784.1,1.12117]
[1743416266613,2.56135,1784.2,1784.1,1.12117]
[1743416269510,1.12121,1784.1,1784.0,1.12121]
[1743416269722,2.63841,1784.1,1784.0,1.12121]
[1743416269913,1.12134,1783.9,1783.8,4.32919]
[1743416270305,1.12132,1784.0,1783.9,1.12129]
[1743416270615,2.63127,1784.0,1783.9,1.12129]
[1743416270817,2.63127,1784.0,1783.9,2.49729]
[1743416271012,2.63127,1784.0,1783.9,1.12129]
[1743416271625,2.63127,1784.0,1783.9,2.49729]
[1743416272113,1.51,1784.0,1783.9,2.49729]
[1743416273620,6.5363,1784.3,1784.0,2.80305]
[1743416273818,1.3783,1784.2,1784.1,2.56341]
[1743416275315,2.49945,1784.2,1784.1,2.56341]
[1743416276418,1.3783,1784.2,1784.1,2.56341]
[1743416276618,1.12115,1784.2,1784.1,2.56335]
[1743416276821,2.55265,1784.2,1784.1,2.56335]
[1743416278323,1.12127,1784.1,1784.0,1.12124]
[1743416278523,2.55277,1784.1,1784.0,1.12124]
[1743416279224,1.4315,1784.1,1784.0,1.12124]
[1743416279616,2.55271,1784.1,1784.0,1.12124]
[1743416281024,1.3093,1784.3,1784.2,1.12115]
[1743416281828,2.7868,1784.3,1784.2,1.12115]
[1743416282026,3.90788,1784.3,1784.2,1.12115]
[1743416282229,2.7868,1784.3,1784.2,1.12115]
[1743416282528,0.00841986,1784.4,1784.3,1.12108]
[1743416282822,0.00841986,1784.4,1784.3,2.58698]
[1743416283838,0.00841986,1784.4,1784.3,6.24728]
[1743416284028,9.86e-06,1784.4,1784.3,6.24728]
[1743416284225,1.1914,1785.0,1784.9,1.12071]
[1743416284426,5.9108,1785.2,1785.1,1.12058]
[1743416284735,1.226,1785.4,1785.1,8.32238]
[1743416285032,3.2078,1785.8,1785.6,1.12026]
[1743416285033,2.4711,1785.7,1785.6,1.12026]
[1743416285227,3.59131,1785.7,1785.6,1.12026]
[1743416285730,2.36531,1785.7,1785.6,1.12026]
[1743416285925,1.12027,1785.6,1785.5,0.00841986]
[1743416286125,5.8713,1785.6,1785.3,1.12041]
[1743416286328,1.12039,1785.4,1785.3,1.12041]
[1743416286527,1.12035,1785.5,1785.2,1.5141]
[1743416286729,1.4375,1785.3,1785.2,2.63462]
[1743416287627,1.4375,1785.3,1785.1,0.00841986]
[1743416287832,1.12052,1785.2,1785.1,0.00841986]
[1743416288036,1.12052,1785.2,1785.1,1.12899986]
[1743416288332,1.4375,1785.3,1785.2,1.12052]
[1743416288725,1.4375,1785.3,1785.2,2.58042]
[1743416288921,2.55796,1785.3,1785.2,2.58042]
[1743416289327,3.78466,1785.3,1785.2,2.58042]
[1743416289631,2.6642,1785.3,1785.2,2.58042]
[1743416289834,1.2267,1785.3,1785.2,2.58042]
[1743416290020,1.2267,1785.3,1785.2,5.78822]
[1743416290225,0.00841986,1785.4,1785.3,1.12046]
[1743416291025,1.50611986,1785.4,1785.3,1.12046]
[1743416291731,0.00841986,1785.4,1785.3,1.12046]
[1743416292723,0.00841986,1785.4,1785.3,2.52116]
[1743416293836,1.47661986,1785.4,1785.3,2.52116]
[1743416294932,0.00841986,1785.4,1785.3,2.52116]
[1743416296441,1.12052,1785.2,1785.1,0.00841986]
[1743416296741,2.80944986,1785.4,1785.2,1.12052]
[1743416296742,3.9396,1785.3,1785.2,1.12052]
[1743416296940,1.2284,1785.3,1785.2,1.12052]
[1743416297139,1.2284,1785.3,1785.2,4.32832]
[1743416297545,1.2284,1785.3,1785.2,5.70362]
[1743416297739,3.82716,1785.3,1785.2,2.49582]
[1743416298949,1.12052,1785.2,1785.1,0.00841986]
[1743416299153,1.12063,1785.1,1785.0,1.12059]
[1743416300084,1.4783,1785.2,1785.1,1.12058]
[1743416302455,2.59882,1785.2,1785.1,1.12058]
[1743416302853,1.12058,1785.1,1785.0,2.5428]
[1743416303053,2.59428,1785.1,1785.0,2.5428]
[1743416303548,1.4737,1785.1,1785.0,2.5428]
[1743416304747,3.56847,1785.3,1785.0,1.4222]
[1743416304947,1.4028,1785.1,1785.0,2.54284]
[1743416305645,2.52338,1785.1,1785.0,2.54284]
[1743416308050,1.4028,1785.1,1785.0,2.54284]
[1743416308251,3.5685,1785.3,1785.2,1.12052]
[1743416309148,3.56846,1785.3,1785.2,1.12052]
[1743416309350,2.448,1785.3,1785.2,1.12052]
[1743416309546,3.8922,1785.3,1785.2,1.12052]
[1743416309844,5.01266,1785.3,1785.2,1.12052]
[1743416310048,3.8922,1785.3,1785.2,1.12052]
[1743416310346,5.01266,1785.3,1785.2,1.12052]
[1743416312452,5.01266,1785.3,1785.2,2.63812]
[1743416312753,3.8922,1785.3,1785.2,2.63812]
[1743416313644,5.01266,1785.3,1785.2,2.63812]
[1743416315749,0.00841986,1785.4,1785.3,1.12046]
[1743416315946,0.00841986,1785.4,1785.3,10.81826]
[1743416316147,0.00841986,1785.4,1785.3,9.46086]
[1743416316645,0.00841986,1785.4,1785.3,8.31826]
[1743416317151,1.44071986,1785.4,1785.3,8.31826]
[1743416317758,7.14851986,1785.4,1784.9,0.00841986]
[1743416317958,4.32844,1785.0,1784.9,0.00841986]
[1743416318160,4.32844,1785.0,1784.8,1.12073]
[1743416318161,1.12093,1784.6,1784.5,1.12093]
[1743416318357,3.2078,1784.7,1784.5,1.12095]
[1743416318548,1.4323,1784.6,1784.5,1.12095]
[1743416318859,1.12096,1784.5,1784.4,2.50977]
[1743416319049,1.12096,1784.5,1784.0,7.26858]
[1743416319050,1.12112,1784.3,1784.0,5.6322]
[1743416319251,3.83936,1784.4,1784.3,1.12949986]
[1743416319557,3.83936,1784.4,1784.3,0.00841986]
[1743416320251,3.83936,1784.4,1784.3,1.12949986]
[1743416320856,3.83936,1784.4,1784.3,0.00841986]
[1743416321057,3.9206,1784.4,1784.3,1.12949986]
[1743416321553,0.00841986,1784.5,1784.4,1.12102]
[1743416321758,0.00841986,1784.5,1784.4,2.60222]
[1743416322951,3.2078,1784.9,1784.8,1.12077]
[1743416323259,4.6714,1784.9,1784.8,1.12077]
[1743416323657,1.12077,1784.8,1784.7,2.50258]
[1743416323848,2.58437,1784.8,1784.7,2.50258]
[1743416324051,2.58437,1784.8,1784.7,1.3818]
[1743416324258,2.58437,1784.8,1784.7,1.12083]
[1743416324456,2.58437,1784.8,1784.4,6.79254]
[1743416324457,1.121,1784.5,1784.4,1.121]
[1743416324655,0.00841986,1784.9,1784.8,1.12077]
[1743416324956,0.00841986,1784.9,1784.8,8.33757]
[1743416325153,0.00841986,1784.9,1784.8,9.83267]
[1743416325854,0.00841986,1784.9,1784.8,2.61587]
[1743416328061,0.00841986,1784.9,1784.8,5.82367]
[1743416330562,0.00841986,1784.9,1784.8,9.81967]
[1743416331058,0.00841986,1784.9,1784.8,5.82367]
[1743416331261,1.21631986,1784.9,1784.8,5.82367]
[1743416333064,2.33702986,1784.9,1784.8,4.32857]
[1743416333364,1.12081,1784.8,1784.7,1.12078]
[1743416333656,1.4784,1784.8,1784.7,1.12078]
[1743416335856,1.21631986,1784.9,1784.6,1.4123]
[1743416336161,2.69041986,1784.9,1784.8,1.12077]
[1743416338658,1.1209,1784.7,1784.6,1.12085]
[1743416339059,1.12096,1784.6,1784.5,1.12092]
[1743416339458,1.12096,1784.5,1784.4,5.79237]
[1743416339658,2.34326,1784.5,1784.4,5.79237]
[1743416339864,2.34326,1784.5,1784.4,4.32877]
[1743416340461,1.12122,1784.2,1783.9,6.01114]
[1743416340763,1.2689,1784.1,1784.0,1.12127]
[1743416341165,2.39011,1784.1,1784.0,1.12127]
[1743416341365,3.76211,1784.1,1784.0,1.12127]
[1743416342262,1.12127,1784.0,1783.9,2.60351986]
[1743416342565,1.372,1784.0,1783.9,2.60351986]
[1743416343567,2.49327,1784.0,1783.9,2.60351986]
[1743416343764,3.71407,1784.0,1783.9,2.60351986]
[1743416344268,3.71407,1784.0,1783.9,1.48221986]
[1743416344661,3.71407,1784.0,1783.9,1e-08]
[1743416345068,9.42187,1784.0,1783.9,1e-08]
[1743416345359,9.42187,1784.0,1783.6,2.63447]
[1743416345360,1.12146,1783.7,1783.6,2.63447]
[1743416345561,1.12157,1783.6,1783.5,1.12155]
[1743416345760,1.12159,1783.5,1783.4,3.2078]
[1743416345962,1.12178,1783.2,1783.1,1.513]
[1743416346266,1.12176,1783.3,1783.2,1.12175]
[1743416346466,1.13017986,1783.3,1783.2,1.12175]
[1743416346669,0.00841986,1783.3,1783.2,1.12175]
[1743416347058,0.00841986,1783.3,1783.2,4.32955]
[1743416348267,0.00841986,1783.3,1783.2,5.73285]
[1743416349067,0.00841986,1783.3,1783.2,2.52505]
[1743416349469,1.13012986,1783.3,1783.2,2.52505]
[1743416350575,0.00841986,1783.3,1783.2,2.52505]
[1743416351065,0.00841986,1783.3,1783.2,5.73285]
[1743416351465,2.29497,1783.6,1783.2,4.6111]
[1743416351666,1.4774,1783.5,1783.4,1.12165]
[1743416351973,1.4774,1783.5,1783.4,2.59145]
[1743416352369,2.59899,1783.5,1783.4,2.59145]
[1743416352673,1.4774,1783.5,1783.4,2.59145]
[1743416352873,2.30338986,1783.6,1783.5,1.12159]
[1743416353171,1.12168,1783.4,1783.3,1.12168]
[1743416353670,1.12175,1783.3,1783.2,1.12172]
[1743416355169,2.57309,1783.4,1783.3,1.12171]
[1743416355966,2.57309,1783.4,1783.2,1.424]
[1743416355967,1.12171,1783.3,1783.2,2.54574]
[1743416356177,1.12184,1783.1,1783.0,3.21621986]
[1743416356388,1.12184,1783.1,1783.0,0.00841986]
[1743416356568,2.34202,1783.2,1783.0,0.00841986]
[1743416356776,2.34202,1783.2,1783.1,1.12184]
[1743416356976,1.2202,1783.2,1783.1,1.12184]
[1743416357470,2.6561,1783.2,1783.1,2.54584]
[1743416357875,3.77788,1783.2,1783.1,2.54584]
[1743416358065,2.6561,1783.2,1783.1,2.54584]
[1743416358268,0.00841986,1783.6,1783.1,1.424]
[1743416358469,0.00841986,1783.6,1783.5,1.12159]
[1743416358676,5.60459,1784.6,1784.2,1.12108]
[1743416358677,3.2078,1784.6,1784.2,1.12108]
[1743416358883,1.12126,1784.1,1784.0,1.12124]
[1743416359074,1.12127,1784.0,1783.9,1.12131]
[1743416359373,2.29927,1784.0,1783.9,1.12131]
[1743416359579,1.12138,1783.9,1783.8,1.12136]
[1743416359775,2.29931,1784.0,1783.9,1.12134]
[1743416360406,1.12134,1783.9,1783.8,1.12979986]
[1743416361079,2.29933,1784.0,1783.9,1.12134]
[1743416361374,2.5616,1784.0,1783.9,1.12134]
[1743416361579,3.68287,1784.0,1783.9,2.62314]
[1743416361972,3.68287,1784.0,1783.9,1.5018]
[1743416362480,3.68287,1784.0,1783.9,2.62314]
[1743416363077,2.5616,1784.0,1783.9,2.62314]
[1743416363675,1.26691986,1784.1,1784.0,1.12127]
[1743416363876,1.26691986,1784.1,1784.0,2.62307]
[1743416364281,2.69691986,1784.1,1784.0,2.62307]
[1743416364475,3.81812986,1784.1,1784.0,2.62307]
[1743416364678,3.81812986,1784.1,1784.0,1.5018]
[1743416364874,3.81812986,1784.1,1783.8,3.21621986]
[1743416364875,1.12134,1783.9,1783.8,4.33756986]